bitfinex/quotes_BTCUSD_20250102
["timestamp","ask_amount","ask_price","bid_price","bid_amount"]
[1735835976834,0.01113056,97660.0,97659.0,0.006]
[1735835977457,0.01113056,97660.0,97659.0,0.015]
[1735835977665,0.01113056,97660.0,97659.0,0.14198632]
[1735835978434,0.01113056,97660.0,97659.0,0.13298632]
[1735835978618,0.01113056,97660.0,97659.0,0.15122126]
[1735835978827,0.01113056,97660.0,97659.0,0.12222126]
[1735835979032,0.01113056,97660.0,97659.0,0.15022126]
[1735835979969,0.01113056,97660.0,97659.0,0.14222126]
[1735835980175,0.01113056,97660.0,97659.0,0.14522126]
[1735835980321,0.01113056,97660.0,97659.0,0.13722126]
[1735835980729,0.01113056,97660.0,97659.0,0.14622126]
[1735835980935,0.01113056,97660.0,97659.0,0.13722126]
[1735835981126,0.01113056,97660.0,97659.0,0.11422126]
[1735835981287,0.01113056,97660.0,97659.0,0.12322126]
[1735835981732,0.01113056,97660.0,97659.0,0.12822126]
[1735835982116,0.01113056,97660.0,97659.0,0.12322126]
[1735835982332,0.01113056,97660.0,97659.0,0.12622126]
[1735835982999,0.01113056,97660.0,97659.0,0.11422126]
[1735835983155,0.01113056,97660.0,97659.0,0.12222126]
[1735835983352,0.01113056,97660.0,97659.0,0.11922126]
[1735835983729,0.01113056,97660.0,97659.0,0.12822126]
[1735835984931,0.2047813,97706.0,97661.0,0.20479]
[1735835985114,0.1,97705.0,97662.0,0.10398632]
[1735835985419,0.08809256,97685.0,97659.0,0.01414684]
[1735835985767,0.204764,97674.0,97659.0,0.00914684]
[1735835985987,0.204757,97677.0,97659.0,0.21393984]
[1735835986183,0.08809256,97685.0,97659.0,0.00914684]
[1735835986533,0.1226,97661.0,97659.0,0.00014684]
[1735835986736,0.204792,97660.0,97659.0,0.00014684]
[1735835987548,0.204792,97660.0,97659.0,0.00114684]
[1735835987745,0.204792,97660.0,97659.0,0.00014684]
[1735835987956,0.206792,97660.0,97659.0,0.00014684]
[1735835988560,0.206792,97660.0,97659.0,0.00214684]
[1735835988908,0.206792,97660.0,97659.0,0.00014684]
[1735835991047,0.31077832,97660.0,97659.0,0.00014684]
[1735835991468,0.206792,97660.0,97659.0,0.00014684]
[1735835991675,0.002,97660.0,97659.0,0.00014684]
[1735835991902,0.0786,97671.0,97659.0,0.00014684]
[1735835991903,0.0756,97671.0,97659.0,0.00014684]
[1735835992103,0.204771,97670.0,97659.0,0.00014684]
[1735835992663,0.20478,97666.0,97659.0,0.00014684]
[1735835993629,0.20479,97661.0,97659.0,0.00014684]
[1735835994370,0.30877632,97661.0,97659.0,0.00014684]
[1735835994962,0.1299,97660.0,97659.0,0.00014684]
[1735835996563,0.38388632,97660.0,97659.0,0.00014684]
[1735835996784,0.38388632,97660.0,97659.0,0.00114684]
[1735835997419,0.38488632,97660.0,97659.0,0.00114684]
[1735835997632,0.38388632,97660.0,97659.0,0.00114684]
[1735835997835,0.38388632,97660.0,97659.0,0.00131784]
[1735835998011,0.38588632,97660.0,97659.0,0.00031784]
[1735836000224,0.58588632,97660.0,97659.0,0.00031784]
[1735836000422,0.1,97650.0,97649.0,0.000171]
[1735836000675,0.48008632,97650.0,97649.0,0.00031793]
[1735836000846,0.51172318,97650.0,97649.0,0.00031793]
[1735836001049,0.41172318,97650.0,97649.0,0.00031793]
[1735836001267,0.38008632,97650.0,97649.0,0.00031793]
[1735836002089,0.37508632,97650.0,97649.0,0.00031793]
[1735836002664,0.57508632,97650.0,97649.0,0.00031793]
[1735836003244,0.57708632,97650.0,97649.0,0.00131793]
[1735836003679,0.57508632,97650.0,97649.0,0.00031793]
[1735836004052,0.58108632,97650.0,97649.0,0.00131793]
[1735836004551,0.59152135,97650.0,97649.0,0.00131793]
[1735836005172,0.59752135,97650.0,97649.0,0.00231793]
[1735836005376,0.204888,97615.0,97597.0,0.204923]
[1735836005580,0.204888,97615.0,97591.0,0.204935]
[1735836005581,0.204897,97610.0,97602.0,0.00014701]
[1735836006019,0.15,97617.0,97602.0,0.00014701]
[1735836006244,0.204907,97605.0,97602.0,0.00014701]
[1735836006444,0.409815,97605.0,97602.0,0.00014701]
[1735836006861,0.01033367,97619.0,97602.0,0.00014701]
[1735836007106,0.0831,97627.0,97602.0,0.00014701]
[1735836007313,0.15,97616.0,97602.0,0.00014701]
[1735836007530,0.0831,97627.0,97602.0,0.00014701]
[1735836007746,0.006,97605.0,97604.0,0.204909]
[1735836007950,0.0755,97635.0,97605.0,0.023]
[1735836008178,0.0755,97635.0,97612.0,0.204892]
[1735836008179,0.204858,97629.0,97612.0,0.204892]
[1735836008383,0.204863,97626.0,97612.0,0.204892]
[1735836008586,0.204872,97622.0,97607.0,0.204903]
[1735836009076,0.204851,97632.0,97607.0,0.204903]
[1735836009280,0.204851,97632.0,97602.0,0.02314701]
[1735836009483,0.003,97627.0,97615.0,0.204886]
[1735836009864,0.012,97627.0,97615.0,0.204886]
[1735836010071,0.0023,97627.0,97604.0,0.023]
[1735836010211,0.204873,97622.0,97605.0,0.10398632]
[1735836010413,0.204873,97622.0,97606.0,0.204904]
[1735836010667,0.204863,97626.0,97610.0,0.204895]
[1735836010913,0.20486,97628.0,97615.0,0.204885]
[1735836011111,0.003,97627.0,97615.0,0.204885]
[1735836011292,0.20486,97628.0,97615.0,0.204885]
[1735836011670,0.001,97622.0,97615.0,0.204885]
[1735836012436,0.001,97622.0,97619.0,0.204877]
[1735836012904,0.204836,97639.0,97625.0,0.204864]
[1735836013108,0.004,97628.0,97617.0,0.079]
[1735836013317,0.004,97628.0,97627.0,0.204861]
[1735836013522,0.004,97628.0,97627.0,0.33184732]
[1735836013934,0.204808,97652.0,97628.0,0.023]
[1735836014148,8.55e-05,97660.0,97633.0,0.1]
[1735836014354,8.55e-05,97660.0,97649.0,0.204814]
[1735836014532,8.55e-05,97660.0,97635.0,0.023]
[1735836014787,8.55e-05,97660.0,97652.0,0.204806]
[1735836015197,8.55e-05,97660.0,97657.0,0.409594]
[1735836015426,8.55e-05,97660.0,97657.0,0.40974101]
[1735836015641,8.55e-05,97660.0,97659.0,0.227794]
[1735836015864,8.55e-05,97660.0,97659.0,0.33178032]
[1735836016067,8.55e-05,97660.0,97659.0,0.204794]
[1735836016308,8.55e-05,97660.0,97659.0,0.33178032]
[1735836017085,8.55e-05,97660.0,97659.0,0.33678032]
[1735836017310,8.55e-05,97660.0,97659.0,0.33178032]
[1735836017747,0.0010855,97660.0,97659.0,0.33778032]
[1735836018104,0.0010855,97660.0,97659.0,0.34178032]
[1735836019663,0.0010855,97660.0,97659.0,0.01]
[1735836020064,8.55e-05,97660.0,97659.0,0.004]
[1735836020281,8.55e-05,97660.0,97659.0,0.11698632]
[1735836020468,0.0010855,97660.0,97659.0,0.23998632]
[1735836020702,0.0010855,97660.0,97659.0,0.22698632]
[1735836021064,0.0010855,97660.0,97659.0,0.23198632]
[1735836021467,0.0010855,97660.0,97659.0,0.22698632]
[1735836021923,0.0010855,97660.0,97659.0,0.23198632]
[1735836022131,8.55e-05,97660.0,97659.0,0.22698632]
[1735836022477,0.0010855,97660.0,97659.0,0.23498632]
[1735836022678,8.55e-05,97660.0,97659.0,0.22198632]
[1735836023116,0.0010855,97660.0,97659.0,0.23098632]
[1735836024098,0.0010855,97660.0,97659.0,0.23698632]
[1735836024534,0.0010855,97660.0,97659.0,0.23098632]
[1735836024991,0.0010855,97660.0,97659.0,0.015]
[1735836025184,8.55e-05,97660.0,97659.0,0.10998632]
[1735836025893,8.55e-05,97660.0,97659.0,0.12698632]
[1735836026175,0.0010855,97660.0,97659.0,0.14198632]
[1735836026570,8.55e-05,97660.0,97659.0,0.13298632]
[1735836026773,0.0010855,97660.0,97659.0,0.14198632]
[1735836027501,0.0010855,97660.0,97659.0,0.13598632]
[1735836027853,0.0010855,97660.0,97659.0,0.009]
[1735836028277,8.55e-05,97660.0,97657.0,0.00014701]
[1735836028480,8.55e-05,97660.0,97659.0,0.006]
[1735836028684,0.0010855,97660.0,97659.0,0.015]
[1735836028908,0.0010855,97660.0,97657.0,0.00014701]
[1735836029182,0.0010855,97660.0,97659.0,0.001]
[1735836029357,0.0010855,97660.0,97659.0,0.002]
[1735836029563,8.55e-05,97660.0,97659.0,0.12798632]
[1735836029767,8.55e-05,97660.0,97659.0,0.002]
[1735836030094,8.55e-05,97660.0,97659.0,0.001]
[1735836030497,8.55e-05,97660.0,97659.0,0.002]
[1735836030698,8.55e-05,97660.0,97659.0,0.001]
[1735836030924,8.55e-05,97660.0,97659.0,0.002]
[1735836031352,8.55e-05,97660.0,97659.0,0.20468632]
[1735836031785,8.55e-05,97660.0,97659.0,0.20868632]
[1735836032201,8.55e-05,97660.0,97659.0,0.20368632]
[1735836032607,8.55e-05,97660.0,97659.0,0.20968632]
[1735836032814,8.55e-05,97660.0,97659.0,0.12998632]
[1735836033233,0.0010855,97660.0,97659.0,0.13898632]
[1735836033451,0.0010855,97660.0,97659.0,0.12998632]
[1735836033649,0.0010855,97660.0,97659.0,0.22998632]
[1735836033785,0.0020855,97660.0,97659.0,0.23398632]
[1735836033994,0.0020855,97660.0,97659.0,0.13998632]
[1735836034194,8.55e-05,97660.0,97659.0,0.13298632]
[1735836034635,8.55e-05,97660.0,97659.0,0.12698632]
[1735836034834,8.55e-05,97660.0,97659.0,0.13298632]
[1735836035446,0.0010855,97660.0,97659.0,0.13598632]
[1735836035634,0.0010855,97660.0,97659.0,0.14098632]
[1735836035836,0.0010855,97660.0,97659.0,0.13198632]
[1735836036055,0.0020855,97660.0,97659.0,0.14098632]
[1735836036450,8.55e-05,97660.0,97659.0,0.13198632]
[1735836036802,0.0010855,97660.0,97659.0,0.14098632]
[1735836037220,0.0010855,97660.0,97659.0,0.13598632]
[1735836037401,0.0010855,97660.0,97659.0,0.14098632]
[1735836041258,0.0010855,97660.0,97659.0,0.24098632]
[1735836041610,0.0010855,97660.0,97659.0,0.14098632]
[1735836044709,0.0010855,97660.0,97659.0,0.14214249]
[1735836047830,0.0010855,97660.0,97659.0,0.14115732]
[1735836048826,0.0010855,97660.0,97659.0,0.014171]
[1735836050025,8.55e-05,97660.0,97659.0,0.005171]
[1735836050450,8.55e-05,97660.0,97659.0,0.007171]
[1735836050629,8.55e-05,97660.0,97659.0,0.002171]
[1735836051153,8.55e-05,97660.0,97659.0,0.004171]
[1735836051526,8.55e-05,97660.0,97659.0,0.002171]
[1735836051730,8.55e-05,97660.0,97659.0,0.000171]
[1735836051948,8.55e-05,97660.0,97659.0,0.004171]
[1735836052372,8.55e-05,97660.0,97659.0,0.002171]
[1735836052373,0.0788855,97660.0,97659.0,0.002171]
[1735836052618,0.08485656,97660.0,97659.0,0.004171]
[1735836052989,0.08485656,97660.0,97659.0,0.002171]
[1735836053393,0.08485656,97660.0,97659.0,0.005171]
[1735836053641,0.08485656,97660.0,97659.0,0.002171]
[1735836053817,0.13325656,97660.0,97659.0,0.002171]
[1735836054024,0.13723649,97660.0,97659.0,0.000171]
[1735836054180,0.13324885,97660.0,97659.0,0.000171]
[1735836054418,0.13324885,97660.0,97659.0,0.002171]
[1735836054788,0.13324885,97660.0,97659.0,0.000171]
[1735836055134,0.13324885,97660.0,97659.0,0.001171]
[1735836055604,0.13324885,97660.0,97659.0,0.000171]
[1735836056166,0.13824885,97660.0,97659.0,0.000171]
[1735836056599,0.13324885,97660.0,97659.0,0.000171]
[1735836056776,0.13624885,97660.0,97659.0,0.000171]
[1735836059407,0.13324885,97660.0,97659.0,0.000171]
[1735836059575,0.13624885,97660.0,97659.0,0.000171]
[1735836060412,0.13324885,97660.0,97659.0,0.000171]
[1735836060827,0.13524885,97660.0,97659.0,0.000171]
[1735836062074,0.13324885,97660.0,97659.0,0.000171]
[1735836062778,0.13624885,97660.0,97659.0,0.000171]
[1735836062976,0.13324885,97660.0,97659.0,0.000171]
[1735836063417,0.13424885,97660.0,97659.0,0.000171]
[1735836064373,0.28424885,97660.0,97659.0,0.000171]
[1735836064794,0.39866858,97660.0,97659.0,0.000171]
[1735836065197,0.42589807,97660.0,97659.0,0.000171]
[1735836065405,0.15,97651.0,97650.0,0.009299]
[1735836065615,0.3349432,97651.0,97650.0,0.00944608]
[1735836066056,0.3800432,97651.0,97650.0,0.00944608]
[1735836066832,0.3800432,97651.0,97650.0,0.01044608]
[1735836066833,0.4063312,97651.0,97650.0,0.01044608]
[1735836067032,0.4143312,97651.0,97650.0,0.01044608]
[1735836067323,0.50582722,97651.0,97650.0,0.01044608]
[1735836068449,0.4143312,97651.0,97650.0,0.01044608]
[1735836069484,0.28405688,97651.0,97650.0,0.01044608]
[1735836070561,0.3880432,97651.0,97650.0,0.01044608]
[1735836071371,0.28405688,97651.0,97650.0,0.01044608]
[1735836071575,0.3880432,97651.0,97650.0,0.01044608]
[1735836074212,0.4880432,97651.0,97650.0,0.01044608]
[1735836075037,0.50870679,97651.0,97650.0,0.01044608]
[1735836075242,0.60870679,97651.0,97650.0,0.01044608]
[1735836075418,0.71269311,97651.0,97650.0,0.01044608]
[1735836075618,0.25,97641.0,97602.0,0.000171]
[1735836075810,0.15,97637.0,97627.0,0.0003181]
[1735836076021,0.1288,97638.0,97627.0,0.0003181]
[1735836076022,0.435159,97628.0,97627.0,0.0003181]
[1735836076235,0.54503539,97628.0,97627.0,0.0003181]
[1735836077114,0.54503539,97628.0,97627.0,0.0013181]
[1735836077328,0.59343539,97628.0,97627.0,0.0003181]
[1735836077729,0.59943539,97628.0,97627.0,0.0013181]
[1735836080280,0.79943539,97628.0,97627.0,0.0013181]
[1735836080687,0.81991769,97628.0,97627.0,0.0013181]
[1735836080816,0.8706467,97628.0,97627.0,0.0013181]
[1735836081071,0.354911,97603.0,97602.0,0.000171]
[1735836081399,0.46616183,97603.0,97602.0,0.00031816]
[1735836081933,0.60077168,97603.0,97602.0,0.00031816]
[1735836082134,0.71932751,97603.0,97602.0,0.00031816]
[1735836082393,0.74214774,97603.0,97602.0,0.00031816]
[1735836082792,0.1,97582.0,97580.0,0.000171]
[1735836082995,0.58754332,97581.0,97580.0,0.00031828]
[1735836083245,0.59701437,97581.0,97580.0,0.00031828]
[1735836083445,0.36219317,97581.0,97580.0,0.00031828]
[1735836083685,0.00723617,97581.0,97580.0,0.00031828]
[1735836083855,0.204923,97598.0,97580.0,0.00031828]
[1735836084023,0.204931,97594.0,97580.0,0.00031828]
[1735836084199,0.26120202,97593.0,97580.0,0.00031828]
[1735836084397,0.15,97591.0,97580.0,0.00031828]
[1735836084600,0.204934,97592.0,97580.0,0.00031828]
[1735836084601,0.204952,97584.0,97580.0,0.00031828]
[1735836084803,0.204955,97582.0,97580.0,0.00031828]
[1735836085015,0.26118633,97581.0,97580.0,0.00031828]
[1735836085779,0.26418633,97581.0,97580.0,0.00031828]
[1735836086383,0.26418633,97581.0,97580.0,0.00020949]
[1735836087014,0.26518633,97581.0,97580.0,0.00020949]
[1735836087776,0.26518633,97581.0,97580.0,0.00010538]
[1735836089357,0.204976,97573.0,97566.0,0.00017083]
[1735836089560,0.10398632,97572.0,97566.0,0.00066195]
[1735836089766,0.1111947,97572.0,97566.0,0.00066195]
[1735836090133,0.409957,97571.0,97566.0,0.00066195]
[1735836090340,0.204978,97571.0,97566.0,0.00066195]
[1735836090571,0.204978,97571.0,97566.0,0.00166195]
[1735836090572,0.20197566,97571.0,97566.0,0.00166195]
[1735836090872,0.00717755,97570.0,97566.0,0.00266195]
[1735836091077,0.00717755,97570.0,97566.0,0.00166195]
[1735836091285,0.10398632,97569.0,97566.0,0.00166195]
[1735836091648,0.00717755,97570.0,97566.0,0.00266195]
[1735836091995,0.204978,97572.0,97566.0,0.00266195]
[1735836092199,0.10398632,97569.0,97566.0,0.00266195]
[1735836092401,0.204987,97567.0,97566.0,0.00266195]
[1735836092606,0.204987,97567.0,97566.0,0.00166195]
[1735836092994,0.204987,97567.0,97566.0,0.00266195]
[1735836093193,0.204987,97567.0,97566.0,0.00166195]
[1735836093458,0.21329291,97567.0,97566.0,0.00366195]
[1735836093844,0.21329291,97567.0,97566.0,0.00566195]
[1735836094197,0.00830591,97567.0,97566.0,0.00066195]
[1735836095621,0.01030591,97567.0,97566.0,0.00066195]
[1735836096469,0.01030591,97567.0,97566.0,0.07926195]
[1735836096672,0.002,97567.0,97566.0,0.17926195]
[1735836097273,0.15,97594.0,97566.0,0.17926195]
[1735836097471,0.15,97592.0,97572.0,0.204975]
[1735836097708,0.15,97590.0,97572.0,0.204975]
[1735836097916,0.30892732,97589.0,97568.0,0.204985]
[1735836098053,0.15,97584.0,97566.0,0.07926195]
[1735836098255,0.00833403,97583.0,97566.0,0.07926195]
[1735836099126,0.00833403,97583.0,97567.0,0.204987]
[1735836099426,0.204957,97581.0,97566.0,0.00966195]
[1735836099630,0.204957,97581.0,97566.0,0.00066195]
[1735836099831,0.00833166,97580.0,97566.0,0.00066195]
[1735836099986,0.30894832,97579.0,97566.0,0.00066195]
[1735836100364,0.21329408,97578.0,97566.0,0.00066195]
[1735836100571,0.10398632,97577.0,97566.0,0.00066195]
[1735836100956,0.00832849,97576.0,97566.0,0.00066195]
[1735836101258,0.00832849,97576.0,97566.0,0.00166195]
[1735836101499,0.00832849,97576.0,97567.0,0.1229]
[1735836101671,0.005,97579.0,97572.0,0.204976]
[1735836101877,0.005,97579.0,97573.0,0.204974]
[1735836102096,0.005,97579.0,97572.0,0.204976]
[1735836102275,0.002,97581.0,97572.0,0.204976]
[1735836102623,0.15,97591.0,97572.0,0.204976]
[1735836102624,0.007,97578.0,97572.0,0.204976]
[1735836103033,0.009,97578.0,97572.0,0.204976]
[1735836103329,0.009,97578.0,97572.0,0.205976]
[1735836103529,0.007,97578.0,97572.0,0.205976]
[1735836103701,0.204939,97590.0,97572.0,0.204976]
[1735836103901,0.11229945,97589.0,97572.0,0.208976]
[1735836104110,0.11229945,97589.0,97572.0,0.004]
[1735836104309,0.204943,97588.0,97572.0,0.004]
[1735836104508,0.204951,97585.0,97572.0,0.004]
[1735836104710,8.56e-05,97576.0,97572.0,0.004]
[1735836105288,8.56e-05,97576.0,97566.0,0.02154171]
[1735836105699,0.00828523,97575.0,97566.0,0.00066195]
[1735836106427,0.00828523,97575.0,97572.0,0.005]
[1735836106635,0.00828523,97575.0,97572.0,0.002]
[1735836106837,0.10398632,97574.0,97566.0,0.00066195]
[1735836107041,0.10398632,97574.0,97566.0,0.00466195]
[1735836107238,0.00828365,97573.0,97566.0,0.00266195]
[1735836107396,0.11226997,97573.0,97566.0,0.00266195]
[1735836108407,0.11226997,97573.0,97566.0,0.00066195]
[1735836109236,0.11426997,97573.0,97566.0,0.00066195]
[1735836109461,0.204976,97572.0,97566.0,0.00066195]
[1735836109866,0.00828239,97571.0,97566.0,0.00066195]
[1735836110390,0.10398632,97570.0,97566.0,0.00066195]
[1735836110619,0.30896732,97570.0,97566.0,0.00066195]
[1735836110892,0.204985,97568.0,97566.0,0.00066195]
[1735836111056,0.30897132,97568.0,97566.0,0.00066195]
[1735836111257,0.0082789,97567.0,97566.0,0.00066195]
[1735836112061,0.39482834,97567.0,97566.0,0.00066195]
[1735836112262,0.64262834,97567.0,97566.0,0.00066195]
[1735836112465,0.578016,97553.0,97552.0,0.000171]
[1735836112696,0.578016,97553.0,97551.0,0.000171]
[1735836112697,0.373,97552.0,97551.0,0.000171]
[1735836112897,0.58802027,97552.0,97551.0,0.00031833]
[1735836113096,0.15,97537.0,97534.0,0.000171]
[1735836113347,0.25398632,97535.0,97534.0,0.00031842]
[1735836113825,0.31688636,97535.0,97534.0,0.00031842]
[1735836114011,0.41688636,97535.0,97534.0,0.00031842]
[1735836114576,0.43293731,97535.0,97534.0,0.00031842]
[1735836115211,0.63792363,97535.0,97534.0,0.00031842]
[1735836115416,0.60513731,97535.0,97534.0,0.00031842]
[1735836115618,1.01913535,97535.0,97534.0,0.00031842]
[1735836115819,1.01913535,97535.0,97526.0,0.000171]
[1735836115820,0.35,97527.0,97526.0,2.359e-05]
[1735836116028,0.355117,97505.0,97504.0,0.000171]
[1735836116228,0.53980332,97505.0,97504.0,0.00030156]
[1735836116484,0.54800293,97505.0,97504.0,0.00030156]
[1735836116701,0.59730293,97505.0,97504.0,0.00030156]
[1735836117309,0.79730293,97505.0,97504.0,0.00030156]
[1735836117874,0.80771039,97505.0,97504.0,0.00030156]
[1735836118292,0.80771039,97505.0,97482.0,0.000171]
[1735836118293,0.205163,97483.0,97482.0,0.000171]
[1735836118493,0.46729041,97483.0,97482.0,0.0002201]
[1735836118722,0.26212741,97483.0,97482.0,0.0002201]
[1735836118947,0.00814109,97483.0,97482.0,0.0002201]
[1735836119349,0.15,97503.0,97483.0,0.205162]
[1735836119553,0.15,97501.0,97482.0,0.0002201]
[1735836119755,0.25398632,97501.0,97482.0,0.0002201]
[1735836119952,0.003,97483.0,97482.0,0.22586946]
[1735836120317,0.003,97483.0,97482.0,0.22786946]
[1735836120516,0.003,97483.0,97482.0,0.02270346]
[1735836120718,0.003,97483.0,97482.0,0.0022201]
[1735836121593,0.003,97483.0,97482.0,0.0002201]
[1735836122029,0.00808236,97483.0,97482.0,0.0022201]
[1735836122510,0.205134,97497.0,97482.0,0.0022201]
[1735836122661,0.15,97495.0,97482.0,0.0002201]
[1735836122868,0.205158,97486.0,97482.0,0.0022201]
[1735836123079,0.15,97483.0,97482.0,0.0022201]
[1735836123402,0.26206818,97483.0,97482.0,0.0002201]
[1735836123970,0.26206818,97483.0,97482.0,0.0022201]
[1735836124370,0.27812737,97483.0,97482.0,0.0022201]
[1735836125277,0.27812737,97483.0,97482.0,0.0042201]
[1735836125665,0.27812737,97483.0,97482.0,0.0002201]
[1735836125865,0.28212737,97483.0,97482.0,0.0002201]
[1735836126085,0.4710545,97483.0,97482.0,0.0002201]
[1735836126292,0.3670545,97483.0,97482.0,0.0002201]
[1735836126507,0.37106818,97483.0,97482.0,0.0002201]
[1735836126707,0.55146818,97483.0,97482.0,0.0002201]
[1735836126937,0.54546818,97483.0,97482.0,0.0002201]
[1735836127352,0.12106818,97483.0,97482.0,0.0002201]
[1735836127979,0.26806818,97483.0,97482.0,0.0002201]
[1735836128188,0.11806818,97483.0,97482.0,0.0002201]
[1735836128451,0.12206818,97483.0,97482.0,0.0002201]
[1735836128587,0.35518,97475.0,97474.0,0.00014958]
[1735836128796,0.45916632,97475.0,97474.0,0.00014958]
[1735836128994,0.46709593,97475.0,97474.0,0.00014958]
[1735836129910,0.54749593,97475.0,97474.0,0.00014958]
[1735836130112,0.55649593,97475.0,97474.0,0.00014958]
[1735836130334,0.58664075,97475.0,97474.0,0.00014958]
[1735836130814,0.56549593,97475.0,97474.0,0.00014958]
[1735836131421,0.205213,97460.0,97448.0,0.02090866]
[1735836131874,0.205216,97458.0,97448.0,0.02090866]
[1735836132080,0.41044,97456.0,97447.0,0.01606332]
[1735836132283,0.355225,97454.0,97447.0,0.01606332]
[1735836132487,0.45921132,97454.0,97447.0,0.01606332]
[1735836132681,0.46713319,97454.0,97447.0,0.01606332]
[1735836132992,0.49727801,97454.0,97447.0,0.01606332]
[1735836133231,0.46713319,97454.0,97447.0,0.01606332]
[1735836133473,0.00792187,97454.0,97453.0,0.0011712]
[1735836133737,0.00792187,97454.0,97453.0,0.0021712]
[1735836134022,0.00791256,97454.0,97453.0,0.0021712]
[1735836134458,0.002,97460.0,97453.0,0.0021712]
[1735836134690,0.205199,97467.0,97453.0,0.0011712]
[1735836135151,0.205201,97465.0,97453.0,0.0021712]
[1735836135571,0.00792402,97466.0,97453.0,0.0021712]
[1735836135574,0.00792243,97464.0,97453.0,0.0021712]
[1735836135778,0.00792243,97464.0,97453.0,0.0011712]
[1735836136133,0.205206,97463.0,97453.0,0.0001712]
[1735836136372,0.205216,97458.0,97453.0,0.0011712]
[1735836136574,0.205216,97458.0,97453.0,0.0001712]
[1735836136907,0.20522,97456.0,97453.0,0.0001712]
[1735836137052,0.00791529,97455.0,97453.0,0.0001712]
[1735836137250,0.205216,97458.0,97453.0,0.0001712]
[1735836137452,0.206216,97458.0,97453.0,0.0001712]
[1735836137651,0.00791688,97457.0,97453.0,0.0001712]
[1735836137883,0.15,97455.0,97453.0,0.0001712]
[1735836138086,0.26187901,97454.0,97453.0,0.0001712]
[1735836138697,0.46710401,97454.0,97453.0,0.0001712]
[1735836139148,0.56246801,97454.0,97453.0,0.0011712]
[1735836139542,0.56246801,97454.0,97453.0,0.0001712]
[1735836139747,0.51540401,97454.0,97453.0,0.0001712]
[1735836139946,0.51540401,97454.0,97453.0,0.0021712]
[1735836140354,0.51540401,97454.0,97453.0,0.0011712]
[1735836140594,0.61840401,97454.0,97453.0,0.0011712]
[1735836140805,0.82239033,97454.0,97453.0,0.0011712]
[1735836140977,0.92039033,97454.0,97453.0,0.0011712]
[1735836141626,0.81640401,97454.0,97453.0,0.0001712]
[1735836142246,0.205284,97426.0,97419.0,0.01606731]
[1735836142419,0.30927032,97426.0,97419.0,0.01606731]
[1735836142796,0.31706144,97426.0,97419.0,0.01606731]
[1735836143422,0.31806144,97426.0,97425.0,0.00089051]
[1735836143601,0.32306144,97426.0,97425.0,0.00089051]
[1735836144448,0.31806144,97426.0,97425.0,0.00089051]
[1735836144646,0.21407512,97426.0,97425.0,0.00089051]
[1735836144862,0.01279112,97426.0,97425.0,0.00089051]
[1735836145190,0.01379112,97426.0,97425.0,0.00089051]
[1735836145406,0.11777744,97426.0,97425.0,0.00089051]
[1735836145609,0.01379112,97426.0,97425.0,0.00089051]
[1735836145936,0.006,97426.0,97425.0,0.00089051]
[1735836146161,0.01379325,97426.0,97425.0,0.00089051]
[1735836146342,0.006,97426.0,97425.0,0.00089051]
[1735836146545,0.01379325,97426.0,97425.0,0.00089051]
[1735836146777,0.006,97426.0,97425.0,0.00089051]
[1735836146959,0.01379325,97426.0,97425.0,0.00089051]
[1735836147162,0.006,97426.0,97417.0,0.205302]
[1735836147445,0.006,97426.0,97408.0,0.03433475]
[1735836147581,0.006,97426.0,97421.0,0.02089013]
[1735836147988,0.00779246,97425.0,97421.0,0.02089013]
[1735836148191,0.00779246,97425.0,97422.0,0.049]
[1735836148422,0.005,97426.0,97423.0,0.410579]
[1735836148796,0.005,97426.0,97425.0,0.228286]
[1735836149017,0.001,97426.0,97425.0,0.205286]
[1735836149217,0.001,97426.0,97422.0,0.049]
[1735836149423,0.006,97426.0,97422.0,0.049]
[1735836149624,0.006,97426.0,97422.0,0.0488]
[1735836149799,0.007,97426.0,97425.0,0.004]
[1735836150201,0.205256,97440.0,97423.0,0.003]
[1735836150431,0.20540282,97440.0,97423.0,0.003]
[1735836150651,0.001,97426.0,97423.0,0.003]
[1735836151000,0.00014682,97440.0,97423.0,0.003]
[1735836151169,0.00014682,97440.0,97406.0,0.0001712]
[1735836151170,0.205288,97424.0,97406.0,0.0001712]
[1735836151371,0.20531,97414.0,97406.0,0.0001712]
[1735836151717,0.205317,97411.0,97408.0,0.02035611]
[1735836152050,0.00772705,97410.0,97406.0,0.0001712]
[1735836152247,0.00772705,97410.0,97406.0,0.0011712]
[1735836152431,0.41062,97414.0,97406.0,0.0011712]
[1735836152630,0.00772626,97409.0,97406.0,0.0001712]
[1735836152850,0.206317,97411.0,97408.0,0.004]
[1735836153046,0.206317,97411.0,97408.0,0.008]
[1735836153250,0.001,97411.0,97408.0,0.004]
[1735836153473,0.001,97411.0,97410.0,0.1]
[1735836153676,0.001,97411.0,97410.0,0.0796]
[1735836154028,0.205274,97431.0,97411.0,0.205315]
[1735836154411,0.205259,97438.0,97415.0,0.205305]
[1735836154572,0.00014682,97435.0,97415.0,0.205305]
[1735836154767,0.00014682,97435.0,97425.0,0.205284]
[1735836155178,0.00014682,97435.0,97423.0,0.20529]
[1735836155515,0.00014682,97435.0,97421.0,0.205294]
[1735836155892,0.00014682,97435.0,97417.0,0.205302]
[1735836156093,0.205267,97434.0,97416.0,0.0495]
[1735836156445,0.00114682,97435.0,97428.0,0.02106502]
[1735836156630,0.00114682,97435.0,97410.0,0.205317]
[1735836156631,0.205267,97434.0,97410.0,0.205317]
[1735836156878,0.11013314,97435.0,97411.0,0.205314]
[1735836157243,0.205267,97434.0,97415.0,0.205306]
[1735836157542,0.154,97434.0,97419.0,0.0210424]
[1735836157743,0.205277,97430.0,97419.0,0.0210424]
[1735836158106,0.205277,97430.0,97400.0,0.205338]
[1735836158107,0.205292,97423.0,97410.0,0.001]
[1735836158311,0.10398632,97422.0,97410.0,0.001]
[1735836158496,0.205306,97416.0,97412.0,0.02082034]
[1735836158627,0.15,97415.0,97410.0,0.001]
[1735836158989,0.355308,97415.0,97410.0,0.001]
[1735836159296,0.205284,97426.0,97402.0,7e-05]
[1735836159507,0.205288,97424.0,97415.0,0.001]
[1735836160257,0.10398632,97425.0,97408.0,0.02064557]
[1735836160475,0.205269,97433.0,97411.0,0.1]
[1735836160677,0.001,97415.0,97411.0,0.1]
[1735836160884,0.001,97415.0,97412.0,0.205313]
[1735836161080,0.001,97415.0,97412.0,0.410626]
[1735836161482,0.001,97415.0,97412.0,0.205313]
[1735836161683,0.001,97415.0,97409.0,0.205318]